bitfinex/quotes_BTCUSD_20250529
["timestamp","ask_amount","ask_price","bid_price","bid_amount"]
[1748493319356,5.69073033,107690.0,107680.0,0.002]
[1748493319574,5.87399043,107690.0,107680.0,0.002]
[1748493319817,5.87399043,107690.0,107680.0,0.00249193]
[1748493320031,5.99292538,107690.0,107680.0,0.00249193]
[1748493320894,5.90187143,107690.0,107680.0,0.00249193]
[1748493321115,5.75895143,107690.0,107680.0,0.00249193]
[1748493321335,6.16473143,107690.0,107680.0,0.00249193]
[1748493322456,6.11973143,107690.0,107680.0,0.00349193]
[1748493322659,6.17373143,107690.0,107680.0,0.00449193]
[1748493323295,6.26478538,107690.0,107680.0,0.00449193]
[1748493324198,6.29558538,107690.0,107680.0,0.00449193]
[1748493324399,6.32127959,107690.0,107680.0,0.00449193]
[1748493325076,6.29558538,107690.0,107680.0,0.00449193]
[1748493326395,6.50583673,107690.0,107680.0,0.00449193]
[1748493326601,6.86490538,107690.0,107680.0,0.00449193]
[1748493326828,6.89670538,107690.0,107680.0,0.00449193]
[1748493327261,6.90152666,107690.0,107680.0,0.00449193]
[1748493327940,6.51372666,107690.0,107680.0,0.00449193]
[1748493328152,6.86952666,107690.0,107680.0,0.00449193]
[1748493328371,6.90002666,107690.0,107680.0,0.00449193]
[1748493334339,6.92104108,107690.0,107680.0,0.00449193]
[1748493334840,0.83082211,107680.0,107670.0,0.12]
[1748493335049,6.42747086,107680.0,107670.0,0.12]
[1748493335275,6.46872136,107680.0,107670.0,0.12]
[1748493335496,6.4754807,107680.0,107670.0,0.12]
[1748493335935,6.50127152,107680.0,107670.0,0.12]
[1748493336160,6.50727152,107680.0,107670.0,0.122]
[1748493336420,6.48449397,107680.0,107670.0,0.122]
[1748493337066,0.55896321,107620.0,107610.0,0.0195057]
[1748493337304,0.55896321,107620.0,107550.0,0.0161303]
[1748493337305,0.01859366,107560.0,107550.0,0.0161303]
[1748493337551,6.44463723,107560.0,107550.0,0.01131071]
[1748493337807,6.44463723,107560.0,107550.0,0.00388004]
[1748493337808,6.46657691,107560.0,107550.0,0.00388004]
[1748493338064,6.46657691,107560.0,107520.0,6e-05]
[1748493338065,5.66413429,107530.0,107520.0,6e-05]
[1748493338305,5.63607397,107530.0,107520.0,6e-05]
[1748493338539,5.70036166,107530.0,107520.0,6e-05]
[1748493338775,6.40994184,107530.0,107520.0,6e-05]
[1748493339019,6.06764622,107530.0,107520.0,6e-05]
[1748493339280,6.25296021,107530.0,107520.0,6e-05]
[1748493339516,6.25202198,107530.0,107520.0,6e-05]
[1748493339750,0.88182198,107530.0,107520.0,6e-05]
[1748493340007,1.18942919,107530.0,107520.0,6e-05]
[1748493340243,0.88962919,107530.0,107520.0,6e-05]
[1748493340493,0.54459344,107530.0,107520.0,6e-05]
[1748493340718,0.54459344,107530.0,107520.0,0.03106]
[1748493340719,0.52831344,107530.0,107520.0,0.03106]
[1748493340946,0.53527344,107530.0,107520.0,0.04824404]
[1748493341177,0.86127344,107530.0,107520.0,0.03965208]
[1748493341415,0.54559344,107530.0,107520.0,0.04823007]
[1748493341665,0.54559344,107530.0,107520.0,0.04823022]
[1748493341924,0.20659344,107530.0,107520.0,0.04823022]
[1748493342163,0.29664739,107530.0,107520.0,0.04823022]
[1748493342395,0.36758186,107530.0,107520.0,0.04823025]
[1748493342645,0.29764739,107530.0,107520.0,0.04823025]
[1748493342893,0.29764739,107530.0,107520.0,0.04823042]
[1748493343269,0.61544739,107530.0,107520.0,0.02365208]
[1748493343353,0.61544739,107530.0,107520.0,0.03965208]
[1748493343354,0.29764739,107530.0,107520.0,0.03965208]
[1748493343825,0.20659344,107530.0,107520.0,0.03965208]
[1748493344058,0.20659344,107530.0,107520.0,0.0482299]
[1748493344331,0.20659344,107530.0,107520.0,0.03965208]
[1748493344761,0.24366082,107530.0,107520.0,0.03965208]
[1748493345212,0.24366082,107530.0,107520.0,0.04822931]
[1748493345446,0.20659344,107530.0,107520.0,0.03965208]
[1748493346403,0.29764739,107530.0,107520.0,0.03965208]
[1748493346636,0.29764739,107530.0,107520.0,0.02365208]
[1748493347343,0.61496739,107530.0,107520.0,0.02365208]
[1748493347843,0.61496739,107530.0,107520.0,0.03975208]
[1748493349002,0.65081251,107530.0,107520.0,0.03975208]
[1748493349227,0.61469831,107530.0,107520.0,0.03975208]
[1748493349455,0.61473831,107530.0,107520.0,0.03975208]
[1748493350172,0.29753831,107530.0,107520.0,0.03975208]
[1748493350397,0.61449831,107530.0,107520.0,0.03975208]
[1748493351481,0.29753831,107530.0,107520.0,0.03975208]
[1748493354409,0.20648436,107530.0,107520.0,0.32745586]
[1748493354633,0.20648436,107530.0,107520.0,0.32513087]
[1748493354850,0.20648436,107530.0,107520.0,0.03975208]
[1748493355532,0.18597972,107540.0,107530.0,0.00929973]
[1748493355753,0.01859858,107530.0,107520.0,0.6286662]
[1748493355973,0.02789787,107530.0,107520.0,0.64726677]
[1748493356242,0.02789787,107530.0,107520.0,0.67846677]
[1748493356466,0.01859832,107530.0,107520.0,0.68776675]
[1748493356682,0.01859832,107530.0,107520.0,0.76952063]
[1748493356900,0.01859832,107530.0,107520.0,0.77882061]
[1748493357137,0.01859832,107530.0,107520.0,1.0641994]
[1748493357353,0.01859832,107530.0,107520.0,0.9897981]
[1748493357600,0.01959832,107530.0,107520.0,0.9927981]
[1748493357815,0.001,107530.0,107520.0,0.9927981]
[1748493358027,0.02889745,107530.0,107520.0,0.9927981]
[1748493358245,0.02889736,107530.0,107520.0,0.9927981]
[1748493358468,0.02989736,107530.0,107520.0,0.9977981]
[1748493358688,0.02059807,107530.0,107520.0,0.9977981]
[1748493358923,0.002,107530.0,107520.0,0.9977981]
[1748493359409,0.01689493,107540.0,107530.0,0.58669274]
[1748493359644,0.22146918,107540.0,107530.0,0.9779117]
[1748493359882,0.21387276,107540.0,107530.0,0.9779117]
[1748493360142,0.03719414,107540.0,107530.0,0.98721082]
[1748493360406,0.01859521,107550.0,107540.0,0.23737373]
[1748493360659,0.22315034,107550.0,107540.0,0.87205207]
[1748493360915,0.21385304,107550.0,107540.0,0.85345496]
[1748493361124,0.21385304,107550.0,107540.0,0.68702592]
[1748493361351,0.02789303,107550.0,107540.0,0.98170297]
[1748493361579,0.03719094,107550.0,107540.0,0.98170297]
[1748493361810,0.04648894,107550.0,107540.0,0.98170297]
[1748493362275,0.23244895,107550.0,107540.0,0.97240471]
[1748493362533,0.03819138,107550.0,107540.0,0.97540471]
[1748493362762,0.03819138,107550.0,107540.0,0.98770305]
[1748493362993,0.03919138,107550.0,107540.0,0.98770245]
[1748493363225,0.02059547,107550.0,107540.0,0.98770245]
[1748493363473,0.21585339,107550.0,107540.0,0.96910585]
[1748493363694,0.21585339,107550.0,107540.0,0.97840419]
[1748493363931,0.02989338,107550.0,107540.0,0.98770245]
[1748493364163,0.02059504,107550.0,107540.0,0.98770245]
[1748493364392,0.01129722,107550.0,107540.0,1.30422245]
[1748493364628,0.01129722,107550.0,107540.0,1.33212045]
[1748493364629,0.002,107550.0,107540.0,1.33212045]
[1748493365821,0.0195947,107550.0,107540.0,1.04374166]
[1748493366056,0.02789226,107550.0,107540.0,1.32612045]
[1748493366287,0.02889226,107550.0,107540.0,1.33012045]
[1748493366517,0.01959461,107550.0,107540.0,1.33312045]
[1748493366742,0.02889217,107550.0,107540.0,1.33312045]
[1748493366974,0.02889226,107550.0,107540.0,1.33312045]
[1748493367207,0.02889217,107550.0,107540.0,1.33312045]
[1748493367439,0.04748773,107550.0,107540.0,1.00730219]
[1748493367706,0.20555557,107550.0,107540.0,0.11284]
[1748493368175,0.20555557,107550.0,107540.0,0.39821879]
[1748493369127,0.20555557,107550.0,107540.0,0.007]
[1748493369354,0.20555557,107550.0,107540.0,0.11284]
[1748493370046,0.20555557,107550.0,107540.0,0.11244]
[1748493370283,0.20539846,107550.0,107540.0,0.29841731]
[1748493370521,0.01943793,107550.0,107540.0,0.97499339]
[1748493370753,0.02873533,107550.0,107540.0,0.99359016]
[1748493370979,0.03803324,107550.0,107540.0,0.99359016]
[1748493371225,0.04733124,107550.0,107540.0,0.99359016]
[1748493372145,0.23329125,107550.0,107540.0,0.69891311]
[1748493372387,0.22399403,107550.0,107540.0,0.9842919]
[1748493372627,0.22399403,107550.0,107540.0,0.77041879]
[1748493372883,0.21469655,107550.0,107540.0,0.96569479]
[1748493373110,0.21469655,107550.0,107540.0,0.97499339]
[1748493373556,0.21469655,107550.0,107540.0,0.99359033]
[1748493373791,0.02873654,107550.0,107540.0,0.99359033]
[1748493374050,0.01014037,107550.0,107540.0,1.31808824]
[1748493374304,0.01943759,107550.0,107540.0,1.40914219]
[1748493375066,0.02873515,107550.0,107540.0,1.40914219]
[1748493375308,0.0194375,107550.0,107540.0,1.40914219]
[1748493375808,0.00084289,107550.0,107540.0,1.40914219]
[1748493376024,0.01014011,107550.0,107540.0,1.40914219]
[1748493376474,0.0194375,107550.0,107540.0,1.40554219]
[1748493376700,0.0194375,107550.0,107540.0,1.43343919]
[1748493377381,0.01029722,107550.0,107540.0,1.43343919]
[1748493377612,0.01959452,107550.0,107540.0,1.43343919]
[1748493377841,0.01959452,107550.0,107540.0,1.43643919]
[1748493378087,0.02889208,107550.0,107540.0,1.43643919]
[1748493378550,0.02889208,107550.0,107540.0,1.40854219]
[1748493378779,0.028892,107550.0,107540.0,1.40854219]
[1748493379924,0.01959452,107550.0,107540.0,1.40854219]
[1748493380387,0.03818965,107550.0,107540.0,1.40854219]
[1748493380672,0.03818956,107550.0,107540.0,1.40854219]
[1748493381768,0.028892,107550.0,107540.0,1.40854219]
[1748493382034,0.03818965,107550.0,107540.0,1.40854219]
[1748493382251,0.01959452,107550.0,107540.0,1.40854219]
[1748493382466,0.028892,107550.0,107540.0,1.40854219]
[1748493382695,0.03818965,107550.0,107540.0,1.40854219]
[1748493382917,0.028892,107550.0,107540.0,1.40854219]
[1748493383135,0.01959452,107550.0,107540.0,1.40854219]
[1748493383351,0.001,107550.0,107540.0,1.40854219]
[1748493383576,0.001,107550.0,107540.0,0.95205731]
[1748493383577,0.20555539,107550.0,107540.0,0.95205731]
[1748493383792,0.20555539,107550.0,107540.0,1.25603356]
[1748493384024,0.20555539,107550.0,107540.0,1.26533199]
[1748493384237,0.02889268,107550.0,107540.0,1.28392859]
[1748493384476,0.03819068,107550.0,107540.0,1.27463033]
[1748493384702,0.03819059,107550.0,107540.0,1.28392859]
[1748493384912,0.03819068,107550.0,107540.0,1.27463033]
[1748493385125,0.03819059,107550.0,107540.0,1.27463033]
[1748493385350,0.04748859,107550.0,107540.0,1.27463033]
[1748493386012,0.2241513,107550.0,107540.0,1.26533199]
[1748493386216,0.2241513,107550.0,107540.0,0.9799532]
[1748493386429,0.2241513,107550.0,107540.0,0.84625199]
[1748493386655,0.02889329,107550.0,107540.0,1.27559033]
[1748493386873,0.03819129,107550.0,107540.0,1.27559033]
[1748493387094,0.03819129,107550.0,107540.0,0.85555033]
[1748493387319,0.03819129,107550.0,107540.0,1.27543033]
[1748493387540,0.03819129,107550.0,107540.0,0.99005154]
[1748493387761,0.03819129,107550.0,107540.0,1.27543033]
[1748493387762,0.2241513,107550.0,107540.0,1.27543033]
[1748493388707,0.03819129,107550.0,107540.0,1.27543033]
[1748493388919,0.03819129,107550.0,107540.0,0.96099033]
[1748493389138,0.2241513,107550.0,107540.0,1.26593199]
[1748493389378,0.20555592,107550.0,107540.0,0.007]
[1748493389604,0.20555592,107550.0,107540.0,0.11244]
[1748493389605,0.33741604,107550.0,107540.0,0.11244]
[1748493389847,0.22195592,107550.0,107540.0,0.007]
[1748493390069,0.20555592,107550.0,107540.0,0.39781879]
[1748493390294,0.20555592,107550.0,107540.0,0.30167765]
[1748493390541,0.19625801,107550.0,107540.0,0.39781879]
[1748493393350,0.19625801,107550.0,107540.0,0.11244]
[1748493393600,0.19625801,107550.0,107540.0,0.39781879]
[1748493394783,0.19625801,107550.0,107540.0,0.59309496]
[1748493395018,0.19625801,107550.0,107540.0,0.40711765]
[1748493395241,0.19625801,107550.0,107540.0,0.60239373]
[1748493395466,0.19625801,107550.0,107540.0,0.61169233]
[1748493395721,0.19625801,107550.0,107540.0,0.61169242]
[1748493395958,0.19625801,107550.0,107540.0,0.62099102]
[1748493396220,0.001,107550.0,107540.0,0.97028893]
[1748493396452,0.02889251,107550.0,107540.0,0.97028893]
[1748493396675,0.03819016,107550.0,107540.0,0.68491014]
[1748493396911,0.03819008,107550.0,107540.0,0.68491014]
[1748493397141,0.03819008,107550.0,107540.0,0.97028893]
[1748493397142,0.04748851,107550.0,107540.0,0.97028893]
[1748493397381,0.0381906,107550.0,107540.0,0.97028893]
[1748493397629,0.01959504,107550.0,107540.0,0.97028893]
[1748493397869,0.02889295,107550.0,107540.0,0.97028901]
[1748493398095,0.02889295,107550.0,107540.0,0.9702885]
[1748493398322,0.01959504,107550.0,107540.0,0.9702885]
[1748493398551,0.02889286,107550.0,107540.0,0.9702885]
[1748493399016,0.01029739,107550.0,107540.0,0.9702885]
[1748493399249,0.01959495,107550.0,107540.0,0.9702885]
[1748493399495,0.001,107550.0,107540.0,1.0025885]
[1748493399751,0.0102973,107550.0,107540.0,0.9864885]
[1748493399992,0.02889225,107550.0,107540.0,0.9864885]
[1748493400237,0.03818999,107550.0,107540.0,0.9702885]
[1748493400465,0.0381899,107550.0,107540.0,0.9702885]
[1748493401123,0.0381899,107550.0,107540.0,1.3717685]
[1748493401610,0.01959469,107550.0,107540.0,1.3717685]
[1748493401836,0.001,107550.0,107540.0,1.4034685]
[1748493403236,0.0086896,107570.0,107560.0,0.21383309]
[1748493403466,0.01798509,107570.0,107560.0,0.49970572]
[1748493403714,0.02728067,107570.0,107560.0,0.49970572]
[1748493404210,0.0086896,107570.0,107560.0,0.49970572]
[1748493404937,0.0086896,107570.0,107560.0,0.21432693]
[1748493405166,0.0086896,107570.0,107560.0,0.50270572]
[1748493406103,0.0086896,107570.0,107560.0,0.50470572]
[1748493406344,0.01798518,107570.0,107560.0,0.51849509]
[1748493406592,0.01798509,107570.0,107560.0,0.51849509]
[1748493406828,0.0086896,107570.0,107560.0,0.51849509]
[1748493408164,0.0086896,107570.0,107560.0,0.64194904]
[1748493408425,0.0086896,107570.0,107560.0,1.05698904]
[1748493408878,0.0086896,107570.0,107560.0,1.04078904]
[1748493411446,0.0086896,107570.0,107560.0,1.05648904]
[1748493413046,0.0086896,107570.0,107560.0,1.08102989]
[1748493413746,0.0086896,107570.0,107560.0,1.07802989]
[1748493413963,0.0086896,107570.0,107560.0,1.07602989]
[1748493414237,0.0086896,107570.0,107560.0,1.07902989]
[1748493414458,0.0086896,107570.0,107560.0,1.08202989]
[1748493414686,0.02787938,107600.0,107590.0,0.20447952]
[1748493414910,0.21375403,107600.0,107580.0,0.5537776]
[1748493415122,0.21375403,107600.0,107590.0,0.58412412]
[1748493415337,0.2044607,107600.0,107590.0,0.58412412]
[1748493415519,0.2044607,107600.0,107590.0,0.6027126]
[1748493415973,0.2054607,107600.0,107590.0,0.6027126]
[1748493416849,0.2094607,107600.0,107590.0,0.59341849]
[1748493417062,0.2084607,107600.0,107590.0,0.60271277]
[1748493417275,0.2044607,107600.0,107590.0,0.60271277]
[1748493417484,0.19916728,107600.0,107590.0,0.38893879]
[1748493419523,0.1898736,107600.0,107590.0,0.38893879]
[1748493420824,0.1898736,107600.0,107590.0,0.28537879]
[1748493421063,0.1898736,107600.0,107580.0,0.4014]
[1748493421064,0.22738525,107590.0,107580.0,0.4014]
[1748493421279,0.22738525,107590.0,107580.0,0.50496]
[1748493421280,0.3184392,107590.0,107580.0,0.50496]
[1748493421499,0.3184392,107590.0,107580.0,0.4014]
[1748493423968,0.23541737,107570.0,107560.0,0.10405384]
[1748493424188,0.23541737,107570.0,107560.0,0.00049384]
[1748493424426,0.32647132,107570.0,107560.0,0.00049384]
[1748493424654,0.39954534,107570.0,107560.0,0.00049384]
[1748493425096,0.39954534,107570.0,107560.0,0.00349384]
[1748493425311,0.39954534,107570.0,107560.0,0.00049384]
[1748493426433,0.39954534,107570.0,107560.0,0.00249384]
[1748493426653,0.39954534,107570.0,107560.0,0.00349384]
[1748493426867,0.39954534,107570.0,107560.0,0.00149384]
[1748493427081,0.40154534,107570.0,107560.0,0.00049384]
[1748493427758,0.40254534,107570.0,107560.0,0.00049384]
[1748493429743,0.32947132,107570.0,107560.0,0.00049384]
[1748493431280,0.34357794,107570.0,107560.0,0.00049384]
[1748493433367,0.34342884,107570.0,107560.0,0.00049384]
[1748493436098,0.34309884,107570.0,107560.0,0.00049384]
[1748493436321,0.87304099,107570.0,107560.0,0.00049384]
[1748493436539,0.23607443,107540.0,107530.0,0.0001521]
[1748493436773,0.98990923,107540.0,107530.0,0.0001521]
[1748493437885,0.99590923,107540.0,107530.0,0.0001521]
[1748493439447,1.00090923,107540.0,107530.0,0.0001521]
[1748493440380,1.00077314,107540.0,107530.0,0.0001521]
[1748493440594,1.09182709,107540.0,107530.0,0.0001521]
[1748493441278,1.09182709,107540.0,107520.0,0.00865208]
[1748493441279,0.49529415,107530.0,107520.0,0.00865208]
[1748493441513,0.6182481,107530.0,107520.0,0.00865208]
[1748493441725,5.6682481,107530.0,107520.0,0.00865208]
[1748493441991,5.76806159,107530.0,107520.0,0.00865208]
[1748493442531,5.76430205,107530.0,107520.0,0.00865208]
[1748493442803,5.76479559,107530.0,107520.0,0.00865208]
[1748493443288,5.76979559,107530.0,107520.0,0.00865208]
[1748493443801,5.77852603,107530.0,107520.0,0.00865208]
[1748493444372,6.18306688,107530.0,107520.0,0.00865208]
[1748493444373,0.55917235,107510.0,107500.0,0.50659]
[1748493444622,1.18172025,107510.0,107500.0,0.50659]
[1748493445345,0.77148025,107510.0,107500.0,0.50659]
[1748493445598,1.08068025,107510.0,107500.0,0.50659]
[1748493446052,1.08068025,107510.0,107500.0,0.50859]
[1748493446246,1.08068025,107510.0,107500.0,0.50959]
[1748493446524,0.66588545,107510.0,107500.0,0.50959]
[1748493446766,0.97488545,107510.0,107500.0,0.50959]
[1748493447525,0.97468531,107510.0,107500.0,0.50959]
[1748493447770,0.98862547,107510.0,107500.0,0.50959]
[1748493449405,0.98862547,107510.0,107480.0,0.002]
[1748493449406,0.88486957,107490.0,107480.0,0.002]
[1748493449633,6.42406567,107490.0,107480.0,0.002]
[1748493449861,6.47573886,107490.0,107480.0,0.002]
[1748493450123,6.45973379,107490.0,107480.0,0.002]
[1748493450830,1.41717249,107490.0,107480.0,0.002]
[1748493451055,0.9809576,107490.0,107480.0,0.002]
[1748493451270,0.98637675,107490.0,107480.0,0.004]
[1748493451486,0.67641675,107490.0,107480.0,0.004]
[1748493451714,1.0008776,107490.0,107480.0,0.004]
[1748493452848,1.01042664,107490.0,107480.0,0.004]
[1748493453067,0.70050664,107490.0,107480.0,0.004]
[1748493453289,0.68530664,107490.0,107480.0,0.004]
[1748493453505,0.99566664,107490.0,107480.0,0.004]
[1748493453719,1.01216664,107490.0,107480.0,0.004]
[1748493454652,6.37216664,107490.0,107480.0,0.004]
[1748493454884,6.38088824,107490.0,107480.0,0.004]
[1748493455848,6.47875824,107490.0,107480.0,0.004]
[1748493456807,6.50569792,107490.0,107480.0,0.004]
[1748493457556,6.60833792,107490.0,107480.0,0.004]
[1748493459452,0.23584851,107470.0,107460.0,0.02009679]
[1748493459686,0.32690246,107470.0,107460.0,0.02009679]
[1748493459915,0.36458585,107470.0,107460.0,0.02009679]
[1748493460143,0.32690246,107470.0,107460.0,0.02009679]
[1748493460831,0.33290246,107470.0,107460.0,0.02009679]
[1748493462158,0.31630246,107470.0,107460.0,0.02009679]
[1748493462386,0.31630246,107470.0,107460.0,0.03539679]
[1748493462387,0.30176161,107470.0,107460.0,0.03539679]
[1748493462612,0.61272161,107470.0,107460.0,0.03539679]
[1748493463063,0.61272161,107470.0,107460.0,0.02009679]
[1748493463284,0.30176161,107470.0,107460.0,0.02009679]
[1748493463508,0.61284161,107470.0,107460.0,0.02009679]
[1748493464354,0.62155971,107470.0,107460.0,0.02009679]
[1748493465003,0.62144163,107470.0,107460.0,0.02009679]
[1748493465450,0.62144163,107470.0,107460.0,0.02874739]
[1748493465717,0.62144163,107470.0,107460.0,0.02874776]
[1748493466377,0.62144163,107470.0,107460.0,0.02876019]
[1748493467056,0.62144163,107470.0,107460.0,0.02009679]
[1748493468578,0.63233926,107470.0,107460.0,0.02009679]
[1748493468827,0.31036163,107470.0,107460.0,0.02009679]
[1748493469092,0.62192163,107470.0,107460.0,0.0287653]
[1748493469358,0.62192163,107470.0,107460.0,0.03519679]
[1748493469590,0.62192163,107470.0,107460.0,0.04386891]
[1748493470052,0.62192163,107470.0,107460.0,0.03519679]
[1748493470284,0.62192163,107470.0,107460.0,0.04387319]
[1748493470517,0.32125926,107470.0,107460.0,0.04387385]
[1748493470754,0.31036163,107470.0,107460.0,0.05967349]
[1748493470991,0.62148163,107470.0,107460.0,0.05967349]
[1748493471228,0.62148163,107470.0,107460.0,0.33637558]
[1748493471229,0.31036163,107470.0,107460.0,0.33637558]
[1748493471467,0.31036163,107470.0,107460.0,0.34505185]
[1748493471727,0.31036163,107470.0,107460.0,0.34505396]
[1748493471989,0.21930768,107470.0,107460.0,0.05099679]
[1748493472210,0.21058958,107470.0,107460.0,0.50494228]
[1748493472432,0.21058958,107470.0,107460.0,0.65230042]
[1748493472654,0.21058958,107470.0,107460.0,0.64362256]
[1748493472881,0.21058958,107470.0,107460.0,0.99292791]
[1748493473425,0.21058958,107470.0,107460.0,0.992928]
[1748493473689,0.62315239,107470.0,107440.0,0.03190168]
[1748493473931,0.53543956,107450.0,107440.0,0.04058285]
[1748493474186,0.53543956,107450.0,107440.0,0.02251458]
[1748493474423,0.53543956,107450.0,107440.0,0.03119753]
[1748493474666,0.53543956,107450.0,107440.0,0.03162273]
[1748493474898,0.62649351,107450.0,107440.0,0.0403064]
[1748493475401,0.28698644,107450.0,107440.0,0.0403064]
[1748493475652,0.28682833,107450.0,107440.0,0.03119956]
[1748493475891,0.62266833,107450.0,107440.0,0.00621458]
[1748493478051,0.62266833,107450.0,107440.0,0.0157182]
[1748493478486,1.00940918,107450.0,107440.0,0.00621458]
[1748493478494,0.20482202,107410.0,107400.0,0.01482541]
[1748493478724,0.19554875,107390.0,107380.0,0.01682541]
[1748493478993,0.19554875,107390.0,107380.0,0.05692202]
[1748493479332,0.19554875,107390.0,107380.0,0.04209659]
[1748493479780,0.19554875,107390.0,107380.0,0.0334]
[1748493480013,0.19554875,107390.0,107380.0,0.33700349]
[1748493480238,0.19604138,107390.0,107380.0,0.33700359]
[1748493480471,0.19604138,107390.0,107380.0,0.3311875]
[1748493480472,0.00049263,107390.0,107380.0,0.3311875]
[1748493480708,0.00049263,107390.0,107380.0,0.95656629]
[1748493480968,0.01911494,107390.0,107380.0,0.95656437]
[1748493481205,0.02942636,107390.0,107380.0,1.08712425]
[1748493481451,0.02942688,107390.0,107380.0,1.03106539]
[1748493481679,0.01080387,107390.0,107380.0,0.75799888]
[1748493481901,0.02942679,107390.0,107380.0,1.05471026]
[1748493482168,0.0201152,107390.0,107380.0,1.06339661]
[1748493482393,0.0294267,107390.0,107380.0,0.77801782]
[1748493482632,0.01962283,107390.0,107380.0,1.05339099]
[1748493482852,0.01962274,107390.0,107380.0,0.7680122]
[1748493483074,0.0382454,107390.0,107380.0,1.05339099]
[1748493483294,0.02893381,107390.0,107380.0,1.05339097]
[1748493483513,0.02893373,107390.0,107380.0,1.05339097]
[1748493483739,0.01962231,107390.0,107380.0,1.05339097]
[1748493483966,0.02893373,107390.0,107380.0,0.76801218]
[1748493484196,0.02893373,107390.0,107380.0,1.05339097]
[1748493484446,0.02893373,107390.0,107380.0,1.05338637]
[1748493484447,0.001,107390.0,107380.0,1.05338637]
[1748493484710,0.01031107,107390.0,107380.0,1.05338631]
[1748493484925,0.001,107390.0,107380.0,1.05338601]
[1748493485140,0.001,107390.0,107380.0,1.14443996]
[1748493485361,0.001,107390.0,107380.0,1.13576421]
[1748493485580,0.001,107390.0,107380.0,1.15030506]
[1748493485804,0.01861806,107420.0,107410.0,0.2361222]
[1748493486042,0.00930864,107420.0,107410.0,0.91495455]
[1748493486262,0.0279267,107420.0,107410.0,0.90564504]
[1748493486491,0.03723595,107420.0,107410.0,0.91495472]
[1748493486706,0.00930864,107420.0,107410.0,0.92426423]
[1748493486919,0.02792645,107420.0,107410.0,0.92426423]
[1748493487136,0.02992654,107420.0,107410.0,0.92426423]
[1748493487404,0.02992654,107420.0,107410.0,0.63888544]
[1748493487629,0.02992645,107420.0,107410.0,0.92426423]
[1748493487845,0.01330864,107420.0,107410.0,0.92426423]
[1748493488051,0.002,107420.0,107410.0,0.92426423]
[1748493488697,0.002,107420.0,107410.0,1.32626423]
[1748493488911,0.02792341,107430.0,107420.0,0.58611176]
[1748493489131,0.0093076,107430.0,107420.0,0.9625445]
[1748493489371,0.03723162,107430.0,107420.0,0.57680312]
[1748493489594,0.01723145,107430.0,107420.0,0.86218191]
[1748493489816,0.04515512,107430.0,107420.0,0.85287301]
[1748493490048,0.03584691,107430.0,107420.0,0.96254486]
[1748493490310,0.03784691,107430.0,107420.0,0.97185359]
[1748493490527,0.004,107430.0,107420.0,0.98116223]
[1748493490746,0.0133076,107430.0,107420.0,0.98116223]
[1748493490955,0.004,107430.0,107420.0,0.98116223]
[1748493491405,0.01330769,107430.0,107420.0,0.98116223]
[1748493492069,0.004,107430.0,107420.0,0.98116223]
[1748493492998,0.00387892,107430.0,107420.0,0.98116223]
[1748493494637,0.00387892,107430.0,107420.0,1.33260223]
[1748493495327,0.01318652,107430.0,107420.0,1.19977618]
[1748493495549,0.00387892,107430.0,107420.0,1.19977618]
[1748493495786,0.20866281,107430.0,107420.0,0.74843274]
[1748493496006,0.20866281,107430.0,107420.0,1.05578688]
[1748493496230,0.20866281,107430.0,107420.0,0.94422705]
[1748493496445,0.03180268,107430.0,107420.0,1.09040486]
[1748493496662,0.03180268,107430.0,107420.0,1.08109604]
[1748493496663,0.21797093,107430.0,107420.0,1.08109604]
[1748493496891,0.03723258,107430.0,107420.0,1.09040477]
[1748493497111,0.03723258,107430.0,107420.0,1.08109604]
[1748493497326,0.21409236,107430.0,107420.0,1.08109604]
[1748493497773,0.21409236,107430.0,107420.0,1.07178705]
[1748493497993,0.21409236,107430.0,107420.0,1.09971428]
[1748493498659,0.21409236,107430.0,107420.0,1.09967428]
[1748493498884,0.21409236,107430.0,107420.0,0.82360439]
[1748493499101,0.21409236,107430.0,107420.0,1.01792923]
[1748493499555,0.02792463,107430.0,107420.0,1.01792871]
[1748493499765,0.03723301,107430.0,107420.0,1.01792871]
[1748493499987,0.1861576,107440.0,107430.0,0.19547594]
[1748493499988,0.01861434,107440.0,107430.0,0.19547594]
[1748493500217,0.04653637,107440.0,107430.0,0.62142458]
[1748493500434,0.21407269,107440.0,107430.0,0.6121168]
[1748493500644,0.21407269,107440.0,107430.0,0.62142484]
[1748493500858,0.20476535,107440.0,107430.0,0.60280868]
[1748493501326,0.20476535,107440.0,107430.0,0.31742989]
[1748493501567,0.20676535,107440.0,107430.0,0.60280868]
[1748493501786,0.20876535,107440.0,107430.0,0.60280868]
[1748493502213,0.20876535,107440.0,107430.0,0.58780868]
[1748493502429,0.20876535,107440.0,107430.0,0.42994998]
[1748493502655,0.20876535,107440.0,107430.0,0.71532877]
[1748493502945,0.20876535,107440.0,107430.0,0.72463698]
[1748493503190,0.004,107440.0,107430.0,0.86334836]
[1748493503426,0.01330682,107440.0,107430.0,0.86334836]
[1748493503654,0.01330674,107440.0,107430.0,0.86334836]
[1748493503882,0.03722478,107450.0,107440.0,0.58467173]
[1748493504114,0.03722478,107450.0,107440.0,0.96110447]
[1748493504346,0.04653134,107450.0,107440.0,0.96110447]
[1748493504574,0.018612,107450.0,107440.0,0.96110447]
[1748493504807,0.02791822,107450.0,107440.0,0.96110447]
[1748493505035,0.018612,107450.0,107440.0,0.96110447]
[1748493505269,0.0279183,107450.0,107440.0,0.62110447]
[1748493505510,0.01861096,107460.0,107450.0,0.21405242]
[1748493505742,0.02791674,107460.0,107450.0,0.58201617]
[1748493505989,0.2140325,107460.0,107450.0,0.58201617]
[1748493506227,0.20472715,107460.0,107450.0,0.57270987]
[1748493506692,0.19542154,107460.0,107450.0,0.3772704]
[1748493506926,0.19542154,107460.0,107450.0,0.58206568]
[1748493507379,0.19542154,107460.0,107450.0,0.6223719]
[1748493507603,0.19542154,107460.0,107450.0,0.61306568]
[1748493507831,0.19542154,107460.0,107450.0,0.59726568]
[1748493508285,0.19542154,107460.0,107450.0,0.5879592]
[1748493508510,0.19542154,107460.0,107450.0,0.59726568]
[1748493508735,0.19542154,107460.0,107450.0,0.5889592]
[1748493508954,0.19542154,107460.0,107450.0,0.5899592]
[1748493509212,0.19542154,107460.0,107450.0,0.59926568]
[1748493509431,0.19542154,107460.0,107450.0,0.58406568]
[1748493509650,0.19542154,107460.0,107450.0,0.29868689]
[1748493509872,0.19542154,107460.0,107450.0,0.58406568]
[1748493510590,0.19542154,107460.0,107450.0,0.59337198]
[1748493510806,0.02791648,107460.0,107450.0,0.60267811]
[1748493511032,0.02791648,107460.0,107450.0,0.59337198]
[1748493511250,0.21403224,107460.0,107450.0,0.58406568]
[1748493511466,0.21403224,107460.0,107450.0,0.29868689]
[1748493511686,0.20472698,107460.0,107450.0,0.58406568]
[1748493512362,0.20472698,107460.0,107450.0,0.37931956]
[1748493512774,0.20472698,107460.0,107450.0,0.38862612]
[1748493513743,0.20472698,107460.0,107450.0,0.3979326]